fUSD/lending_fUSD_20251217
["ID","MTS","AMOUNT","RATE_DAILY","PERIOD"]
[398946717,1766011896966,-158.720361,0.00042466,120]
[398946718,1766011896975,-158.720361,0.00042466,120]
[398946719,1766011896984,-158.720361,0.00042466,120]
[398946720,1766011896993,-158.720361,0.00042466,120]
[398946721,1766011897002,-158.720361,0.00042466,120]
[398946722,1766011897011,-158.720361,0.00042466,120]
[398946723,1766011897020,-158.720361,0.00042466,120]
[398946724,1766011897029,-158.720361,0.00042466,120]
[398946725,1766011897037,-158.720358,0.00042466,120]
[398946726,1766011897046,-1785.0,0.000425,120]
[398946727,1766011897055,-281.5604538,0.000425,120]
[398946728,1766011897064,-502.42,0.000425,30]
[398946729,1766011897075,-15104.14478621,0.000425,120]
[398946730,1766011897085,-6846034.5527,0.00042529,30]
[398946731,1766011897094,-700.0,0.00042562,60]
[398946732,1766011897103,-200.0,0.00042709,2]
[398946733,1766011897112,-200.0,0.00042709,2]
[398946734,1766011897122,-200.0,0.00042709,2]
[398946735,1766011897131,-200.0,0.00042709,2]
[398946736,1766011897140,-200.0,0.00042709,2]
[398946737,1766011897150,-200.0,0.00042709,2]
[398946738,1766011897160,-338.0,0.00042709,2]
[398946739,1766011897170,-200.0,0.00042709,2]
[398946740,1766011897179,-200.0,0.00042709,2]
[398946741,1766011897189,-200.0,0.00042709,2]
[398946742,1766011897198,-200.0,0.00042709,2]
[398946743,1766011897207,-200.0,0.00042709,2]
[398946744,1766011897216,-200.0,0.00042709,2]
[398946745,1766011897224,-200.0,0.00042709,2]
[398946746,1766011897233,-200.0,0.00042709,2]
[398946747,1766011897242,-200.0,0.00042709,2]
[398946748,1766011897251,-200.0,0.00042709,2]
[398946749,1766011897260,-200.0,0.00042709,2]
[398946750,1766011897269,-200.0,0.00042709,2]
[398946751,1766011897278,-200.0,0.00042709,2]
[398946752,1766011897286,-200.0,0.00042709,2]
[398946753,1766011897296,-200.0,0.00042709,2]
[398946754,1766011897306,-200.0,0.00042709,2]
[398946755,1766011897316,-200.0,0.00042709,2]
[398946756,1766011897326,-200.0,0.00042709,2]
[398946757,1766011897335,-200.0,0.00042709,2]
[398946758,1766011897343,-200.0,0.00042709,2]
[398946759,1766011897352,-200.0,0.00042709,2]
[398946760,1766011897361,-200.0,0.00042709,2]
[398946761,1766011897370,-200.0,0.00042709,2]
[398946762,1766011897379,-200.0,0.00042709,2]
[398946763,1766011897388,-200.0,0.00042709,2]
[398946764,1766011897399,-200.0,0.00042709,2]
[398946765,1766011897409,-200.0,0.00042709,2]
[398946766,1766011897418,-200.0,0.00042709,2]
[398946767,1766011897427,-200.0,0.00042709,2]
[398946768,1766011897436,-50000.0,0.00042738,30]
[398946769,1766011897446,-50000.0,0.00042738,31]
[398946770,1766011897455,-50000.0,0.00042738,32]
[398946771,1766011897463,-50000.0,0.00042738,33]
[398946772,1766011897472,-50000.0,0.00042738,34]
[398946773,1766011897481,-50000.0,0.00042738,35]
[398946774,1766011897491,-50000.0,0.00042738,36]
[398946775,1766011897502,-50000.0,0.00042738,37]
[398946776,1766011897511,-50000.0,0.00042738,38]
[398946777,1766011897520,-50000.0,0.00042738,39]
[398946778,1766011897530,-1526964.30682971,0.00042739,7]
[398946779,1766011897539,-1853466.3384126,0.00042739,7]
[398946780,1766011897548,-1552596.28743868,0.00042739,7]
[398946781,1766011897557,-4527718.49553417,0.00042739,7]
[398946782,1766011897565,-1192261.06701778,0.00042739,7]
[398946783,1766011897575,-60396391.36389818,0.00042739,7]
[398946784,1766011897584,-14140634.47089894,0.00042739,7]
[398946785,1766011897593,-5060.33217225,0.00042739,7]
[398946786,1766011897601,-202036.7009372,0.00042739,7]
[398946787,1766011900623,-298.0,0.00042739,7]
[398946788,1766011900859,-8659.39347556,0.00015684,2]
[398946789,1766011900871,-239820.69961224,0.00015684,2]
[398946790,1766011900880,-668.83367394,0.000159,2]
[398946791,1766011900890,-6524.0,0.00022587,2]
[398946792,1766011900899,-6524.0,0.00025587,2]
[398946793,1766011900909,-6524.0,0.00028587,2]
[398946794,1766011900918,-1396.108,0.00031587,2]
[398946795,1766011900927,-1248.497824,0.00032877,31]
[398946796,1766011900936,-157.423662,0.00032877,31]
[398946797,1766011900945,-158.263675,0.00032877,31]
[398946798,1766011900954,-187.100002,0.00032877,31]
[398946799,1766011900963,-157.423662,0.00032877,31]
[398946800,1766011900972,-1248.497824,0.00032877,31]
[398946801,1766011900981,-158.263675,0.00032877,31]
[398946802,1766011900990,-187.100002,0.00032877,31]
[398946803,1766011900999,-157.423662,0.00032877,31]
[398946804,1766011901009,-158.263675,0.00032877,31]
[398946805,1766011901018,-1248.497824,0.00032877,31]
[398946806,1766011901027,-187.100002,0.00032877,31]
[398946807,1766011901037,-157.423662,0.00032877,31]
[398946808,1766011901046,-158.263675,0.00032877,31]
[398946809,1766011901055,-1248.497824,0.00032877,31]
[398946810,1766011901064,-187.100002,0.00032877,31]
[398946811,1766011901077,-157.423662,0.00032877,31]
[398946812,1766011901086,-158.263675,0.00032877,31]
[398946813,1766011901095,-1248.497824,0.00032877,31]
[398946814,1766011901105,-187.100002,0.00032877,31]
[398946815,1766011901115,-157.423662,0.00032877,31]
[398946816,1766011901124,-158.263675,0.00032877,31]
[398946817,1766011901134,-1248.497824,0.00032877,31]
[398946818,1766011901143,-158.263675,0.00032877,31]
[398946819,1766011901154,-157.423662,0.00032877,31]
[398946820,1766011901162,-158.263675,0.00032877,31]
[398946821,1766011901171,-1248.497824,0.00032877,31]
[398946822,1766011901180,-157.423662,0.00032877,31]
[398946823,1766011901189,-158.263675,0.00032877,31]
[398946824,1766011901199,-1248.497824,0.00032877,31]
[398946825,1766011901208,-157.423662,0.00032877,31]
[398946826,1766011901217,-357394.3241978,0.00042739,7]
[398946827,1766011901240,-158.263675,0.00032877,31]
[398946828,1766011901250,-1064.437691,0.00032877,31]
[398946829,1766011901278,-854.02399546,0.00014129,2]
[398946830,1766011901287,-50.30823345,0.00017497,2]
[398946833,1766012371919,999.0,0.00014199,3]
[398946834,1766012486037,1089.0,0.00022,30]
[398946835,1766012879490,150.23,6.846e-05,2]
[398946836,1766012879696,150.23,9.128e-05,2]
[398946837,1766012879909,150.23,0.0001141,2]
[398946852,1766013031969,-2073.2,0.00012543,2]
[398946853,1766013031980,-177.419,0.00012543,2]
[398946854,1766013031989,-250.0,0.00012563,2]
[398946855,1766013031999,-2166.69458338,0.00012599,2]
[398946856,1766013032008,-390.87653377,0.00012636,2]
[398946857,1766013032018,-150.0,0.00012698,2]
[398946858,1766013032028,-9029.4293,0.00012699,2]
[398946859,1766013032038,-9040.47316041,0.00012699,2]
[398946860,1766013032049,-371.86527032,0.00012699,2]
[398946861,1766013032061,-103891.7973447,0.00012699,2]
[398946862,1766013032073,-3274.99776711,0.00012699,2]
[398946863,1766013032084,-9429.47347639,0.00012699,2]
[398946864,1766013032095,-14119.8768977,0.00012699,2]
[398946865,1766013032106,-255.51004428,0.00012699,2]
[398946866,1766013032126,-1890.1956177,0.00012699,2]
[398946867,1766013032137,-1198.93019493,0.00012699,2]
[398946868,1766013032156,-1350.47615637,0.00012699,2]
[398946869,1766013032167,-1335.0404331,0.00012699,2]
[398946876,1766013037739,-324.7020707,0.00012698,2]
[398946877,1766013037748,-500.0,0.00012698,2]
[398946878,1766013037758,-500.0,0.00012698,2]
[398946879,1766013037767,-500.0,0.00012698,2]
[398946880,1766013037776,-500.0,0.00012698,2]
[398946881,1766013037785,-500.0,0.00012698,2]
[398946882,1766013037794,-500.0,0.00012698,2]
[398946883,1766013037809,-500.0,0.00012698,2]
[398946884,1766013037818,-500.0,0.00012698,2]
[398946885,1766013037827,-500.0,0.00012698,2]
[398946886,1766013037837,-500.0,0.00012698,2]
[398946887,1766013037846,-500.0,0.00012698,2]
[398946888,1766013037855,-500.0,0.00012698,2]
[398946889,1766013037865,-500.0,0.00012698,2]
[398946890,1766013037874,-500.0,0.00012698,2]
[398946891,1766013037883,-500.0,0.00012698,2]
[398946892,1766013037892,-500.0,0.00012698,2]
[398946893,1766013037902,-500.0,0.00012698,2]
[398946894,1766013037911,-500.0,0.00012698,2]
[398946895,1766013037920,-500.0,0.00012698,2]
[398946896,1766013037929,-500.0,0.00012698,2]
[398946897,1766013037938,-500.0,0.00012698,2]
[398946898,1766013037948,-60909.26518193,0.00012699,2]
[398946899,1766013037959,-95554.41004528,0.00012699,2]
[398946900,1766013037971,-11356.10627571,0.00012699,2]
[398947088,1766013039743,-431.9908548,0.00012699,2]
[398947112,1766013039953,-445589.59127927,0.00012699,2]
[398947114,1766013039963,-160.9148,0.00012699,2]
[398947116,1766013039972,-6543.3753,0.00012699,2]
[398947118,1766013039981,-171.12787019,0.000127,2]
[398947120,1766013039990,-158.75161316,0.000127,2]
[398947122,1766013039999,-500.0,0.00012798,2]
[398947124,1766013040008,-9999.99,0.00012798,2]
[398947126,1766013040017,-150.99,0.00012798,2]
[398947128,1766013040026,-150.99,0.00012798,2]
[398947130,1766013040035,-311.6,0.00012798,2]
[398947132,1766013040044,-1000.0,0.000128,2]
[398947134,1766013040053,-1075.32,0.000128,2]
[398947136,1766013040063,-311.6,0.00013072,2]
[398947138,1766013040072,-311.61,0.00013346,2]
[398947140,1766013040083,-500.0,0.00013373,2]
[398947142,1766013040092,-500.0,0.00013373,2]
[398947144,1766013040101,-150.23,0.00013691,2]
[398947145,1766013040110,-500.0,0.00013698,2]
[398947148,1766013040119,-500.0,0.00013698,2]
[398947150,1766013040128,-500.0,0.00013698,2]
[398947152,1766013040138,-357.14795574,0.00013698,2]
[398947154,1766013040147,-500.0,0.00013698,2]
[398947156,1766013040156,-503.92687303,0.00013698,2]
[398947157,1766013040166,-500.0,0.00013698,2]
[398947159,1766013040175,-500.0,0.00013698,2]
[398947162,1766013040184,-500.0,0.00013698,2]
[398947164,1766013040194,-500.0,0.00013698,2]
[398947166,1766013040203,-500.0,0.00013698,2]
[398947167,1766013040212,-500.0,0.00013698,2]
[398947168,1766013040222,-500.0,0.00013698,2]
[398947169,1766013040231,-500.0,0.00013698,2]
[398947170,1766013040240,-500.0,0.00013698,2]
[398947171,1766013040249,-500.0,0.00013698,2]
[398947172,1766013040258,-500.0,0.00013698,2]
[398947173,1766013040269,-500.0,0.00013698,2]
[398947174,1766013040278,-880.69,0.00013699,2]
[398947175,1766013040287,-200.0,0.00013699,2]
[398947176,1766013040295,-500.0,0.00013699,2]
[398947177,1766013040304,-500.0,0.00013699,2]
[398947179,1766013040313,-500.0,0.00013699,2]
[398947182,1766013040323,-500.0,0.00013699,2]
[398947184,1766013040332,-500.0,0.00013699,2]
[398947185,1766013040342,-500.0,0.00013699,2]
[398947187,1766013040351,-238.0538828,0.00013699,2]
[398947190,1766013040365,-500.0,0.00013699,2]
[398947192,1766013040378,-500.0,0.00013699,2]
[398947195,1766013040393,-500.0,0.00013699,2]
[398947197,1766013040405,-500.0,0.00013699,2]
[398947199,1766013040417,-500.0,0.00013699,2]
[398947202,1766013040430,-500.0,0.00013699,2]
[398947204,1766013040444,-500.0,0.00013699,2]
[398947207,1766013040456,-500.0,0.00013699,2]
[398947209,1766013040470,-500.0,0.00013699,2]
[398947212,1766013040483,-500.0,0.00013699,2]
[398947214,1766013040496,-500.0,0.00013699,2]
[398947216,1766013040508,-500.0,0.00013699,2]
[398947218,1766013040518,-500.0,0.00013699,2]
[398947221,1766013040531,-500.0,0.00013699,2]
[398947223,1766013040543,-500.0,0.00013699,2]
[398947226,1766013040556,-500.0,0.00013699,2]
[398947228,1766013040570,-500.0,0.00013699,2]
[398947231,1766013040583,-500.0,0.00013699,2]
[398947233,1766013040597,-500.0,0.00013699,2]
[398947235,1766013040609,-1852.42,0.00013727,2]
[398947238,1766013040623,-200.0,0.00013765,2]
[398947240,1766013040635,-195.0,0.00013797,2]
[398947243,1766013040649,-300.0,0.00013797,2]
[398947245,1766013040663,-300.0,0.00013797,2]
[398947248,1766013040676,-300.0,0.00013797,2]
[398947250,1766013040690,-300.0,0.00013797,2]
[398947252,1766013040701,-250.0,0.00013797,2]
[398947255,1766013040714,-151.3194567,0.00013797,2]
[398947257,1766013040728,-300.0,0.00013797,2]
[398947260,1766013040740,-300.0,0.00013797,2]
[398947262,1766013040751,-300.0,0.00013797,2]
[398947264,1766013040764,-300.0,0.00013797,2]
[398947266,1766013040774,-300.0,0.00013797,2]
[398947269,1766013040785,-300.24027772,0.00013797,2]
[398947271,1766013040796,-150.0,0.00013803,2]
[398947274,1766013040810,-2652.56,0.00013854,2]
[398947276,1766013040822,-157.94956517,0.00014387,2]
[398947278,1766013040832,-721.72,0.00014497,2]
[398947280,1766013040843,-155282.52526379,0.00014541,2]
[398947282,1766013040855,-4367.08,0.00014632,2]
[398947285,1766013040867,-150.53901239,0.000149,2]
[398947287,1766013040880,-150.53901239,0.000149,2]
[398947289,1766013040891,-150.53901239,0.000149,2]
[398947292,1766013040902,-150.0,0.00015013,2]
[398947294,1766013040913,-187.10375317,0.00015473,2]
[398947296,1766013040924,-500.0,0.00015473,2]
[398947298,1766013040937,-500.0,0.00015473,2]
[398947301,1766013040948,-707.42,0.0001552,2]
[398947304,1766013040973,-167.14674989,0.000158,2]
[398947307,1766013040984,-445.88911596,0.000159,2]
[398947309,1766013040996,-445.88911596,0.000159,2]
[398947311,1766013041008,-2166.69458333,0.00015917,2]
[398947313,1766013041019,-570.99793084,0.00016021,2]
[398947316,1766013041031,-500.0,0.00016021,2]
[398947318,1766013041043,-9999.99,0.00016116,2]
[398947320,1766013041055,-659.73,0.0001632,2]
[398947322,1766013041067,-500.0,0.00016438,2]
[398947325,1766013041079,-500.0,0.00016438,2]
[398947327,1766013041091,-500.0,0.00016438,2]
[398947329,1766013041103,-500.0,0.00016438,2]
[398947332,1766013041116,-500.0,0.00016438,2]
[398947334,1766013041128,-500.0,0.00016438,2]
[398947336,1766013041141,-500.0,0.00016438,2]
[398947339,1766013041152,-500.0,0.00016438,2]
[398947341,1766013041164,-500.0,0.00016438,2]
[398947343,1766013041176,-500.0,0.00016438,2]
[398947345,1766013041188,-500.0,0.00016438,2]
[398947348,1766013041199,-500.0,0.00016438,2]
[398947350,1766013041211,-500.0,0.00016438,2]
[398947352,1766013041222,-500.0,0.00016438,2]
[398947355,1766013041233,-500.0,0.00016438,2]
[398947357,1766013041245,-500.0,0.00016438,2]
[398947359,1766013041256,-500.0,0.00016438,2]
[398947361,1766013041267,-500.0,0.00016438,2]
[398947364,1766013041278,-500.0,0.00016438,2]
[398947366,1766013041290,-500.0,0.00016438,2]
[398947368,1766013041301,-500.0,0.00016438,2]
[398947371,1766013041313,-500.0,0.00016438,2]
[398947373,1766013041324,-500.0,0.00016438,2]
[398947375,1766013041336,-500.0,0.00016438,2]
[398947377,1766013041347,-500.0,0.00016438,2]
[398947380,1766013041360,-500.0,0.00016438,2]
[398947382,1766013041373,-500.0,0.00016438,2]
[398947384,1766013041384,-500.0,0.00016438,2]
[398947386,1766013041396,-500.0,0.00016438,2]
[398947388,1766013041407,-500.0,0.00016438,2]
[398947391,1766013041419,-500.0,0.00016438,2]
[398947393,1766013041430,-500.0,0.00016438,2]
[398947395,1766013041443,-500.0,0.00016438,2]
[398947397,1766013041455,-250.0,0.00016573,2]
[398947400,1766013041466,-15889.72728136,0.00016661,2]
[398947402,1766013041477,-153762.48332445,0.00016986,2]
[398947545,1766013042748,-445.88911596,0.000159,2]
[398947546,1766013042761,-121.11088404,0.00016986,2]
[398947853,1766013045688,-3428.95868699,0.00016986,2]
[398947856,1766013045705,-1014.96075742,0.00016986,2]
[398947860,1766013045719,-1280.3099978,0.00016986,2]
[398948780,1766013488431,85.45730712,0.00012798,3]
[398948781,1766013488460,414.54269288,0.00012798,3]
[398948782,1766013490291,500.0,0.00012798,4]
[398948783,1766013490329,500.0,0.0001454,5]
[398949120,1766014231692,-195.0,0.0001236,2]
[398949121,1766014231702,-250.0,0.00012363,2]
[398949122,1766014231711,-195.0,0.00012363,2]
[398949125,1766014231721,-13.82212702,0.00012422,2]
[398949127,1766014231735,-181.17787298,0.00012422,2]
[398949128,1766014231744,-300.0,0.00012496,2]
[398949129,1766014231753,-589.80461328,0.00012496,2]
[398949131,1766014231764,-610.19538672,0.00012496,2]
[398949133,1766014231774,-150.0,0.00012496,2]
[398949134,1766014231783,-666.81356326,0.00012497,2]
[398949135,1766014231794,-477.23143448,0.00012497,2]
[398949136,1766014231817,-297.53721885,0.00012497,2]
[398949137,1766014231828,-674.96447697,0.00012497,2]
[398949138,1766014231837,-5645.20678672,0.00012497,2]
[398949139,1766014231848,-270.69232887,0.00012497,2]
[398949140,1766014231859,-11197.49070691,0.00012497,2]
[398949141,1766014231870,-2236.11264591,0.00012497,2]
[398949142,1766014231879,-10182.60039575,0.00012497,2]
[398949143,1766014231888,-500.0,0.00012596,2]
[398949144,1766014231898,-643.73076504,0.00012596,2]
[398949145,1766014231907,-643.73076504,0.00012596,2]
[398949146,1766014231916,-643.73076504,0.00012596,2]
[398949147,1766014231925,-643.73076504,0.00012596,2]
[398949148,1766014231934,-643.73076504,0.00012596,2]
[398949149,1766014231943,-643.73076504,0.00012596,2]
[398949150,1766014231952,-643.73076504,0.00012596,2]
[398949151,1766014231961,-643.73076504,0.00012596,2]
[398949152,1766014231970,-643.73076504,0.00012596,2]
[398949153,1766014231979,-643.73076504,0.00012596,2]
[398949154,1766014231988,-643.73076504,0.00012596,2]
[398949156,1766014231997,-643.73076504,0.00012596,2]
[398949158,1766014232006,-643.73076504,0.00012596,2]
[398949160,1766014232015,-643.73076504,0.00012596,2]
[398949162,1766014232025,-643.73076504,0.00012596,2]
[398949164,1766014232034,-643.73076504,0.00012596,2]
[398949166,1766014232043,-643.73076504,0.00012596,2]
[398949168,1766014232052,-643.73076504,0.00012596,2]
[398949170,1766014232060,-643.73076504,0.00012596,2]
[398949171,1766014232069,-643.73076504,0.00012596,2]
[398949173,1766014232079,-643.73076504,0.00012596,2]
[398949175,1766014232087,-643.73076504,0.00012596,2]
[398949177,1766014232096,-643.73076504,0.00012596,2]
[398949179,1766014232105,-643.73076504,0.00012596,2]
[398949181,1766014232114,-643.73076504,0.00012596,2]
[398949183,1766014232122,-643.73076504,0.00012596,2]
[398949185,1766014232131,-643.73076504,0.00012596,2]
[398949187,1766014232140,-643.73076504,0.00012596,2]
[398949189,1766014232149,-643.73076504,0.00012596,2]
[398949191,1766014232158,-643.73076504,0.00012596,2]
[398949193,1766014232166,-643.73076504,0.00012596,2]
[398949195,1766014232176,-643.73076504,0.00012596,2]
[398949198,1766014232185,-643.73076504,0.00012596,2]
[398949200,1766014232194,-643.73076504,0.00012596,2]
[398949201,1766014232203,-643.73076504,0.00012596,2]
[398949204,1766014232212,-643.73076504,0.00012596,2]
[398949205,1766014232221,-643.73076504,0.00012596,2]
[398949207,1766014232230,-643.73076504,0.00012596,2]
[398949209,1766014232240,-643.73076504,0.00012596,2]
[398949212,1766014232249,-643.73076504,0.00012596,2]
[398949213,1766014232258,-643.73076504,0.00012596,2]
[398949216,1766014232268,-643.73076504,0.00012596,2]
[398949218,1766014232277,-643.73076504,0.00012596,2]
[398949219,1766014232286,-643.73076504,0.00012596,2]
[398949222,1766014232296,-643.73076504,0.00012596,2]
[398949224,1766014232305,-643.73076504,0.00012596,2]
[398949226,1766014232313,-643.73076504,0.00012596,2]
[398949228,1766014232323,-643.73076504,0.00012596,2]
[398949230,1766014232332,-643.73076504,0.00012596,2]
[398949232,1766014232340,-643.73076504,0.00012596,2]
[398949234,1766014232350,-643.73076504,0.00012596,2]
[398949236,1766014232359,-643.73076504,0.00012596,2]
[398949238,1766014232368,-643.73076504,0.00012596,2]
[398949240,1766014232377,-643.73076504,0.00012596,2]
[398949242,1766014232386,-643.73076504,0.00012596,2]
[398949244,1766014232395,-643.73076504,0.00012596,2]
[398949246,1766014232404,-643.73076504,0.00012596,2]
[398949248,1766014232413,-643.73076504,0.00012596,2]
[398949249,1766014232422,-643.73076504,0.00012596,2]
[398949251,1766014232431,-643.73076504,0.00012596,2]
[398949253,1766014232440,-643.73076504,0.00012596,2]
[398949255,1766014232449,-643.73076504,0.00012596,2]
[398949256,1766014232458,-643.73076504,0.00012596,2]
[398949257,1766014232467,-643.73076504,0.00012596,2]
[398949258,1766014232477,-643.73076504,0.00012596,2]
[398949259,1766014232485,-643.73076504,0.00012596,2]
[398949260,1766014232494,-643.73076504,0.00012596,2]
[398949261,1766014232503,-643.73076504,0.00012596,2]
[398949262,1766014232512,-643.73076504,0.00012596,2]
[398949263,1766014232521,-643.73076504,0.00012596,2]
[398949264,1766014232530,-643.73076504,0.00012596,2]
[398949265,1766014232539,-643.73076504,0.00012596,2]
[398949266,1766014232548,-643.73076504,0.00012596,2]
[398949267,1766014232557,-643.73076504,0.00012596,2]
[398949268,1766014232567,-643.73076504,0.00012596,2]
[398949269,1766014232576,-611.54422678,0.00012596,2]
[398949270,1766014232585,-611.54422678,0.00012596,2]
[398949271,1766014232595,-611.54422678,0.00012596,2]
[398949272,1766014232604,-611.54422678,0.00012596,2]
[398949273,1766014232613,-611.54422678,0.00012596,2]
[398949274,1766014232623,-611.54422678,0.00012596,2]
[398949275,1766014232632,-611.54422678,0.00012596,2]
[398949276,1766014232642,-611.54422678,0.00012596,2]
[398949277,1766014232651,-611.54422678,0.00012596,2]
[398949278,1766014232660,-611.54422678,0.00012596,2]
[398949279,1766014232673,-611.54422678,0.00012596,2]
[398949280,1766014232682,-611.54422678,0.00012596,2]
[398949281,1766014232692,-611.54422678,0.00012596,2]
[398949282,1766014232701,-611.54422678,0.00012596,2]
[398949283,1766014232710,-611.54422678,0.00012596,2]
[398949284,1766014232722,-611.54422678,0.00012596,2]
[398949285,1766014232734,-611.54422678,0.00012596,2]
[398949286,1766014232744,-611.54422678,0.00012596,2]
[398949287,1766014232754,-60477.09801808,0.00012597,2]
[398949288,1766014232768,-1063.55689978,0.00012597,2]
[398949289,1766014232781,-20271.39612398,0.00012597,2]
[398949290,1766014232791,-987.4479749,0.00012597,2]
[398949291,1766014232813,-2804.13271573,0.00012597,2]
[398949292,1766014232823,-1991.73526069,0.00012597,2]
[398949293,1766014232834,-289.96440231,0.00012597,2]
[398949294,1766014232845,-529.88865121,0.00012597,2]
[398949295,1766014232856,-347.43508066,0.00012597,2]
[398949296,1766014232866,-887.59509007,0.00012597,2]
[398949297,1766014232877,-876.45217065,0.00012597,2]
[398949298,1766014232888,-2581.03791468,0.00012597,2]
[398949311,1766014237791,-994.46681482,0.00012597,2]
[398949312,1766014237880,-2524.94000031,0.00012597,2]
[398949313,1766014237891,-35495.2652922,0.00012597,2]
[398949314,1766014237901,-7325.901737,0.00012597,2]
[398949315,1766014237968,-620551.68585293,0.00012597,2]
[398949316,1766014237977,-211.15105206,0.00012597,2]
[398949317,1766014237986,-284.67466516,0.00012597,2]
[398949318,1766014237995,-235.8268,0.00012598,2]
[398949319,1766014238004,-500.0,0.0001269,2]
[398949320,1766014238013,-151.0,0.0001269,2]
[398949321,1766014238023,-151.0,0.0001269,2]
[398949322,1766014238032,-151.0,0.0001269,2]
[398949323,1766014238041,-151.0,0.0001269,2]
[398949324,1766014238050,-151.0,0.0001269,2]
[398949325,1766014238059,-151.0,0.0001269,2]
[398949326,1766014238067,-151.0,0.0001269,2]
[398949327,1766014238076,-151.0,0.0001269,2]
[398949328,1766014238086,-151.0,0.0001269,2]
[398949329,1766014238095,-151.0,0.0001269,2]
[398949330,1766014238103,-151.0,0.0001269,2]
[398949331,1766014238112,-1000.0,0.00012696,2]
[398949332,1766014238122,-150.99,0.00012697,2]
[398949333,1766014238131,-9999.99,0.00012697,2]
[398949334,1766014238140,-9999.99,0.00012697,2]
[398949335,1766014238150,-736.21,0.00012697,2]
[398949336,1766014238159,-1858.704,0.00012697,2]
[398949337,1766014238168,-177.419,0.00012697,2]
[398949338,1766014238178,-1000.0,0.00012699,2]
[398949339,1766014238187,-1000.0,0.00012706,2]
[398949340,1766014238196,-500.0,0.00012798,2]
[398949342,1766014238206,-500.0,0.0001287,2]
[398949344,1766014238215,-736.21,0.00012971,2]
[398949346,1766014238225,-150.0,0.00012971,2]
[398949348,1766014238235,-19349.50246835,0.00012986,2]
[398949402,1766014238599,-10182.60039574,0.00012986,2]
[398949406,1766014238633,-5325.96786069,0.0001305,2]
[398949408,1766014238642,-168.0,0.00013126,2]
[398949410,1766014238652,-1436.0,0.00013142,2]
[398949412,1766014238661,-500.0,0.00013144,2]
[398949414,1766014238670,-500.0,0.00013238,2]
[398949416,1766014238679,-736.21,0.00013245,2]
[398949418,1766014238688,-500.0,0.00013373,2]
[398949420,1766014238698,-500.0,0.00013373,2]
[398949422,1766014238707,-500.0,0.00013373,2]
[398949424,1766014238718,-500.0,0.00013373,2]
[398949426,1766014238731,-500.0,0.00013373,2]
[398949428,1766014238740,-515.64282068,0.00013373,2]
[398949430,1766014238750,-500.0,0.00013418,2]
[398949432,1766014238759,-19349.50246835,0.00013475,2]
[398949434,1766014238768,-10182.60039574,0.00013475,2]
[398949436,1766014238779,-1000.0,0.000135,2]
[398949438,1766014238788,-736.21,0.00013519,2]
[398949440,1766014238799,-250.0,0.00013592,2]
[398949442,1766014238807,-195.0,0.00013592,2]
[398949444,1766014238817,-193.0,0.00013592,2]
[398949446,1766014238826,-250.0,0.00013592,2]
[398949448,1766014238836,-195.0,0.00013592,2]
[398949450,1766014238846,-193.58299043,0.00013596,2]
[398949452,1766014238855,-255.0,0.00013596,2]
[398949454,1766014238865,-500.0,0.00013692,2]
[398949456,1766014238875,-500.0,0.00013698,2]
[398949458,1766014238884,-303.85182755,0.00013698,2]
[398949460,1766014238894,-500.0,0.00013698,2]
[398949462,1766014238904,-500.0,0.00013698,2]
[398949464,1766014238913,-500.0,0.00013698,2]
[398949466,1766014238922,-500.0,0.00013698,2]
[398949468,1766014238931,-500.0,0.00013698,2]
[398949470,1766014238941,-500.0,0.00013698,2]